bitfinex/quotes_BTCUSD_20241013
["timestamp","ask_amount","ask_price","bid_price","bid_amount"]
[1728810310747,0.00164,62937.0,62936.0,0.78630457]
[1728810310968,0.00164,62937.0,62936.0,0.85772912]
[1728810311241,0.00164,62937.0,62936.0,0.85774964]
[1728810311474,0.00164,62937.0,62936.0,0.61054666]
[1728810312203,0.00164,62937.0,62936.0,0.85774958]
[1728810312451,0.00164,62937.0,62936.0,0.61054666]
[1728810312699,0.00164,62937.0,62936.0,0.60854666]
[1728810312978,0.00164,62937.0,62936.0,0.65616786]
[1728810313697,0.00164,62937.0,62936.0,0.64516786]
[1728810314168,0.00164,62937.0,62936.0,0.63416786]
[1728810314417,0.00164,62937.0,62936.0,0.59854666]
[1728810314648,0.00164,62937.0,62936.0,0.58654666]
[1728810315099,0.09854,62937.0,62936.0,0.60954666]
[1728810315568,0.09854,62937.0,62936.0,0.59754666]
[1728810315788,0.09854,62937.0,62936.0,0.60854666]
[1728810316426,0.09854,62937.0,62936.0,0.65616786]
[1728810317550,0.09854,62937.0,62936.0,0.6561833]
[1728810318255,0.18034,62937.0,62936.0,0.6561833]
[1728810318498,0.19583746,62937.0,62936.0,0.6561833]
[1728810319229,0.19583746,62937.0,62936.0,0.65618949]
[1728810321686,0.19583746,62937.0,62936.0,0.64518949]
[1728810321936,0.19583746,62937.0,62936.0,0.63418949]
[1728810322153,0.19583746,62937.0,62936.0,0.65418949]
[1728810322367,0.19583746,62937.0,62936.0,0.60654666]
[1728810322582,0.19583746,62937.0,62936.0,0.64419991]
[1728810322792,0.19583746,62937.0,62936.0,0.65419991]
[1728810323426,0.19583746,62937.0,62936.0,0.64419991]
[1728810323641,0.19583746,62937.0,62936.0,0.65419991]
[1728810323849,0.19583746,62937.0,62936.0,0.64419991]
[1728810324068,0.19583746,62937.0,62936.0,0.63419991]
[1728810324288,0.19583746,62937.0,62936.0,0.65619991]
[1728810325158,0.19583746,62937.0,62936.0,0.60854666]
[1728810328247,0.19583746,62937.0,62936.0,0.68004473]
[1728810329330,0.19583746,62937.0,62936.0,0.85603851]
[1728810329566,0.18034,62937.0,62936.0,0.85603851]
[1728810331257,0.18034,62937.0,62936.0,0.78454044]
[1728810331997,0.18034,62937.0,62936.0,0.78457378]
[1728810333202,0.18034,62937.0,62936.0,0.87994508]
[1728810333631,0.18034,62937.0,62936.0,0.65001213]
[1728810333833,0.18034,62937.0,62936.0,0.52168345]
[1728810334004,0.18034,62937.0,62936.0,0.47398501]
[1728810334005,0.19251657,62937.0,62936.0,0.47398501]
[1728810335290,0.19251657,62937.0,62936.0,0.52168345]
[1728810335752,0.19251657,62937.0,62936.0,0.47398501]
[1728810336239,0.19251657,62937.0,62936.0,0.52168345]
[1728810336483,0.19251657,62937.0,62936.0,0.47398501]
[1728810336703,0.19251657,62937.0,62936.0,0.37398501]
[1728810336936,0.19251657,62937.0,62936.0,0.37896038]
[1728810337463,0.19251657,62937.0,62936.0,0.37896039]
[1728810337680,0.19251657,62937.0,62936.0,0.35696039]
[1728810337931,0.19251657,62937.0,62936.0,0.37696039]
[1728810338406,0.19251657,62937.0,62936.0,0.36696039]
[1728810338630,0.19251657,62937.0,62936.0,0.37696039]
[1728810341201,0.19251657,62937.0,62936.0,0.37198501]
[1728810341433,0.19251657,62937.0,62936.0,0.37696039]
[1728810345132,0.19251657,62937.0,62936.0,0.37198501]
[1728810345353,0.19251657,62937.0,62936.0,0.3769604]
[1728810346044,0.11071657,62937.0,62936.0,0.3769604]
[1728810346264,0.01381657,62937.0,62936.0,0.3769604]
[1728810346492,0.00164,62937.0,62936.0,0.3769604]
[1728810346714,0.01379732,62937.0,62936.0,0.3769604]
[1728810354814,0.01379732,62937.0,62936.0,0.37198501]
[1728810355698,0.01379732,62937.0,62936.0,0.37696011]
[1728810355906,0.01379732,62937.0,62936.0,0.37198501]
[1728810357137,0.01379732,62937.0,62936.0,0.37696013]
[1728810358104,0.01379732,62937.0,62936.0,0.38193523]
[1728810362446,0.01379732,62937.0,62936.0,0.38193529]
[1728810363913,0.01379732,62937.0,62936.0,0.37696013]
[1728810364098,0.01379732,62937.0,62936.0,0.38193529]
[1728810364578,0.01379732,62937.0,62936.0,0.22304429]
[1728810365595,0.01379732,62937.0,62936.0,0.38193529]
[1728810368160,0.01379732,62937.0,62936.0,0.37696017]
[1728810369450,0.00164,62937.0,62936.0,0.47696017]
[1728810369719,0.00164,62937.0,62936.0,0.547644]
[1728810370470,0.00164,62937.0,62936.0,0.57148591]
[1728810370676,0.00164,62937.0,62936.0,0.56651075]
[1728810370927,0.00164,62937.0,62936.0,0.74757893]
[1728810372761,0.00164,62937.0,62936.0,0.74761869]
[1728810373936,0.00164,62937.0,62936.0,0.67606041]
[1728810376179,0.00164,62937.0,62936.0,0.78762206]
[1728810376353,0.00164,62937.0,62936.0,0.87922206]
[1728810376548,0.00164,62937.0,62936.0,0.84836041]
[1728810376726,0.00164,62937.0,62936.0,0.8980631]
[1728810376923,0.00164,62937.0,62936.0,1.0046498]
[1728810377125,0.00164,62937.0,62936.0,0.9846498]
[1728810377352,0.00164,62937.0,62936.0,0.93494711]
[1728810377557,0.00164,62937.0,62936.0,0.95494711]
[1728810377757,0.00164,62937.0,62936.0,0.94494711]
[1728810377959,0.00164,62937.0,62936.0,0.94594711]
[1728810379439,0.00164,62937.0,62936.0,0.95690446]
[1728810382219,0.00164,62937.0,62936.0,1.00657718]
[1728810385297,0.00164,62937.0,62936.0,0.95690446]
[1728810391890,0.00164,62937.0,62936.0,1.07604053]
[1728810392430,0.00164,62937.0,62936.0,0.90374053]
[1728810392604,0.00164,62937.0,62936.0,0.78460446]
[1728810393335,0.00164,62937.0,62936.0,0.87991101]
[1728810393754,0.0137977,62937.0,62936.0,0.87991101]
[1728810394864,0.00164,62937.0,62936.0,0.87991101]
[1728810395092,0.0137977,62937.0,62936.0,0.87991101]
[1728810396217,0.0137977,62937.0,62936.0,0.87976619]
[1728810399529,0.00164,62937.0,62936.0,0.88176619]
[1728810400478,0.00164,62937.0,62936.0,0.87976619]
[1728810405751,0.00164,62937.0,62936.0,0.87978997]
[1728810406200,0.00164,62937.0,62936.0,0.83415054]
[1728810406659,0.00164,62937.0,62936.0,0.92948395]
[1728810407969,0.00164,62937.0,62936.0,0.91848395]
[1728810408230,0.00164,62937.0,62936.0,0.92948395]
[1728810408466,0.00164,62937.0,62936.0,0.91849343]
[1728810408693,0.00164,62937.0,62936.0,0.93049343]
[1728810408941,0.00164,62937.0,62936.0,0.91849343]
[1728810409180,0.00164,62937.0,62936.0,0.90749343]
[1728810409400,0.00164,62937.0,62936.0,0.82615054]
[1728810409640,0.00164,62937.0,62936.0,0.84015054]
[1728810412699,0.00164,62937.0,62936.0,0.66423945]
[1728810412951,0.00164,62937.0,62936.0,0.8402745]
[1728810413451,0.00164,62937.0,62936.0,0.959494]
[1728810415282,0.00164,62937.0,62936.0,0.8403185]
[1728810419586,0.00164,62937.0,62936.0,0.79062571]
[1728810419806,0.00164,62937.0,62936.0,0.89592982]
[1728810420037,0.00164,62937.0,62936.0,0.90801075]
[1728810420257,0.00164,62937.0,62936.0,0.78870664]
[1728810421183,0.00164,62937.0,62936.0,0.82442714]
[1728810421406,0.00164,62937.0,62936.0,0.76270664]
[1728810421642,0.00164,62937.0,62936.0,0.77470664]
[1728810421882,0.00164,62937.0,62936.0,0.77370664]
[1728810422141,0.00164,62937.0,62936.0,0.78470664]
[1728810422377,0.00164,62937.0,62936.0,0.82342895]
[1728810422630,0.00164,62937.0,62936.0,0.83442895]
[1728810423474,0.00164,62937.0,62936.0,0.83445839]
[1728810423476,0.00164,62937.0,62936.0,0.78473608]
[1728810424875,0.00164,62937.0,62936.0,0.83446051]
[1728810428014,0.00164,62937.0,62936.0,0.8344518]
[1728810437398,0.00164,62937.0,62936.0,0.83450398]
[1728810440161,0.00164,62937.0,62936.0,0.65827109]
[1728810441504,0.00164,62937.0,62936.0,0.83452002]
[1728810445328,0.00164,62937.0,62936.0,0.82352002]
[1728810445523,0.00164,62937.0,62936.0,0.81252002]
[1728810445669,0.00164,62937.0,62936.0,0.82452002]
[1728810445870,0.00164,62937.0,62936.0,0.83652002]
[1728810446469,0.00164,62937.0,62936.0,0.82452002]
[1728810446697,0.00164,62937.0,62936.0,0.83852002]
[1728810446986,0.00164,62937.0,62936.0,1.01477016]
[1728810447497,0.00164,62937.0,62936.0,1.00277016]
[1728810447711,0.00164,62937.0,62936.0,1.01677016]
[1728810455722,0.00164,62937.0,62936.0,0.84052123]
[1728810457022,0.00164,62937.0,62936.0,0.66427109]
[1728810457231,0.00164,62937.0,62936.0,0.83879747]
[1728810462048,0.00164,62937.0,62936.0,0.83879726]
[1728810465609,0.00164,62937.0,62936.0,0.82479726]
[1728810466088,0.00164,62937.0,62936.0,0.83479726]
[1728810466573,0.00164,62937.0,62936.0,0.82079726]
[1728810466808,0.00164,62937.0,62936.0,0.83226131]
[1728810467969,0.00164,62937.0,62936.0,0.82226131]
[1728810468185,0.00164,62937.0,62936.0,0.83226131]
[1728810471578,0.00164,62937.0,62936.0,0.83227147]
[1728810472786,0.00164,62937.0,62936.0,0.82227147]
[1728810473277,0.00164,62937.0,62936.0,0.81227147]
[1728810473729,0.00164,62937.0,62936.0,0.82427147]
[1728810473955,0.00164,62937.0,62936.0,0.81227147]
[1728810474144,0.00164,62937.0,62936.0,0.82627147]
[1728810474404,0.00164,62937.0,62936.0,0.83627147]
[1728810474851,0.00164,62937.0,62936.0,0.82627147]
[1728810475071,0.00164,62937.0,62936.0,0.84027147]
[1728810484279,0.00164,62937.0,62936.0,0.83912134]
[1728810488985,0.00164,62937.0,62936.0,0.93591035]
[1728810489250,0.00164,62937.0,62936.0,0.93791035]
[1728810489498,0.00164,62937.0,62936.0,1.049472]
[1728810489759,0.00164,62937.0,62936.0,0.93791035]
[1728810490846,0.00164,62937.0,62936.0,1.049472]
[1728810491794,0.00164,62937.0,62936.0,1.19272204]
[1728810492010,0.00164,62937.0,62936.0,1.08116039]
[1728810492222,0.00164,62937.0,62936.0,1.07916039]
[1728810492682,0.00164,62937.0,62936.0,0.93591035]
[1728810493318,0.00164,62937.0,62936.0,0.93791035]
[1728810493531,0.00164,62937.0,62936.0,0.93591035]
[1728810493755,0.00164,62937.0,62936.0,0.93103501]
[1728810493985,0.00164,62937.0,62936.0,0.94703501]
[1728810494409,0.00164,62937.0,62936.0,1.09028505]
[1728810494639,0.00164,62937.0,62936.0,0.94703501]
[1728810494896,0.00164,62937.0,62936.0,0.85023501]
[1728810495158,0.00164,62937.0,62936.0,0.83623501]
[1728810496753,0.00164,62937.0,62936.0,0.85023501]
[1728810496961,0.00164,62937.0,62936.0,0.82223501]
[1728810497199,0.00164,62937.0,62936.0,0.83623501]
[1728810497436,0.00164,62937.0,62936.0,0.85023501]
[1728810500373,0.00164,62937.0,62936.0,0.84823501]
[1728810500794,0.00164,62937.0,62936.0,0.85023501]
[1728810502716,0.00164,62937.0,62936.0,0.83623501]
[1728810502929,0.00164,62937.0,62936.0,0.66139575]
[1728810503144,0.00164,62937.0,62936.0,0.83752172]
[1728810503583,0.00164,62937.0,62936.0,0.83552172]
[1728810504024,0.00164,62937.0,62936.0,0.84952172]
[1728810504438,0.00164,62937.0,62936.0,0.85152172]
[1728810505775,0.00164,62937.0,62936.0,0.85151605]
[1728810516842,0.00164,62937.0,62936.0,0.84951605]
[1728810517060,0.00164,62937.0,62936.0,0.82151605]
[1728810517304,0.00164,62937.0,62936.0,0.82145485]
[1728810517979,0.00164,62937.0,62936.0,0.82345485]
[1728810518394,0.00164,62937.0,62936.0,0.85145485]
[1728810518606,0.00164,62937.0,62936.0,0.83745485]
[1728810518817,0.00164,62937.0,62936.0,0.82345485]
[1728810519031,0.00164,62937.0,62936.0,0.83745485]
[1728810519244,0.00164,62937.0,62936.0,0.85145485]
[1728810524157,0.00164,62937.0,62936.0,0.84945485]
[1728810525054,0.00164,62937.0,62936.0,0.7378932]
[1728810525274,0.00164,62937.0,62936.0,0.84945485]
[1728810525489,0.00164,62937.0,62936.0,0.9926455]
[1728810525728,0.00164,62937.0,62936.0,0.9786455]
[1728810526431,0.00164,62937.0,62936.0,0.9916455]
[1728810526677,0.00164,62937.0,62936.0,0.9786455]
[1728810527390,0.00164,62937.0,62936.0,0.9646455]
[1728810527625,0.00164,62937.0,62936.0,0.9786455]
[1728810528092,0.00164,62937.0,62936.0,0.9916455]
[1728810532592,0.00164,62937.0,62936.0,0.84845485]
[1728810535072,0.00164,62937.0,62936.0,0.83445485]
[1728810535305,0.00164,62937.0,62936.0,0.82145485]
[1728810535553,0.00164,62937.0,62936.0,0.83445485]
[1728810535787,0.00164,62937.0,62936.0,0.82145485]
[1728810536027,0.00164,62937.0,62936.0,0.83545485]
[1728810536270,0.00164,62937.0,62936.0,0.83563905]
[1728810536733,0.00164,62937.0,62936.0,0.84963905]
[1728810537402,0.00164,62937.0,62936.0,0.83563905]
[1728810537410,0.00164,62937.0,62936.0,0.84963905]
[1728810540617,0.00164,62937.0,62936.0,0.83563905]
[1728810541589,0.00164,62937.0,62936.0,0.82163905]
[1728810541826,0.00164,62937.0,62936.0,0.84963905]
[1728810542285,0.00164,62937.0,62936.0,0.84051439]
[1728810543735,0.00164,62937.0,62936.0,0.84251439]
[1728810543957,0.00164,62937.0,62936.0,0.84051439]
[1728810552911,0.00164,62937.0,62936.0,0.82651439]
[1728810553136,0.00164,62937.0,62936.0,0.84051439]
[1728810553576,0.00164,62937.0,62936.0,0.81251439]
[1728810553807,0.00164,62937.0,62936.0,0.84053751]
[1728810555851,0.00164,62937.0,62936.0,0.82653751]
[1728810556078,0.00164,62937.0,62936.0,0.84053751]
[1728810556575,0.00164,62937.0,62936.0,0.81253751]
[1728810556827,0.00164,62937.0,62936.0,0.82553751]
[1728810557051,0.00164,62937.0,62936.0,0.83953751]
[1728810557271,0.00164,62937.0,62936.0,0.84153751]
[1728810558466,0.00164,62937.0,62936.0,0.83954214]
[1728810562781,0.00164,62937.0,62936.0,0.84154214]
[1728810563221,0.00164,62937.0,62936.0,0.83954214]
[1728810564599,0.00164,62937.0,62936.0,0.84154214]
[1728810565516,0.00164,62937.0,62936.0,0.82754214]
[1728810565734,0.00164,62937.0,62936.0,0.84154214]
[1728810565949,0.00164,62937.0,62936.0,0.8285424]
[1728810566170,0.00164,62937.0,62936.0,0.8415424]
[1728810566380,0.00164,62937.0,62936.0,0.8275424]
[1728810566600,0.00164,62937.0,62936.0,0.8285424]
[1728810566812,0.00164,62937.0,62936.0,0.8425424]
[1728810572699,0.00164,62937.0,62936.0,0.84254188]
[1728810574896,0.00164,62937.0,62936.0,0.84054188]
[1728810577762,0.00164,62937.0,62936.0,0.82654188]
[1728810578195,0.00164,62937.0,62936.0,0.84054188]
[1728810578655,0.00164,62937.0,62936.0,0.82654188]
[1728810579086,0.00164,62937.0,62936.0,0.82146418]
[1728810579304,0.00164,62937.0,62936.0,0.83246418]
[1728810579514,0.00164,62937.0,62936.0,0.84646418]
[1728810582225,0.09914,62937.0,62936.0,0.73490328]
[1728810582451,0.09914,62937.0,62936.0,0.98972341]
[1728810583343,0.09914,62937.0,62936.0,0.84646493]
[1728810589382,0.09914,62937.0,62936.0,0.98968129]
[1728810589592,0.09914,62937.0,62936.0,0.97868129]
[1728810589832,0.09914,62937.0,62936.0,0.84746493]
[1728810590045,0.09914,62937.0,62936.0,0.83346493]
[1728810590248,0.09914,62937.0,62936.0,0.83546493]
[1728810590459,0.12124401,62937.0,62936.0,0.84946493]
[1728810590666,0.12124401,62937.0,62936.0,0.83546493]
[1728810590868,0.12124401,62937.0,62936.0,0.82146493]
[1728810591096,0.12124401,62937.0,62936.0,0.83546493]
[1728810592617,0.12124401,62937.0,62936.0,0.84946493]
[1728810596362,0.12124401,62937.0,62936.0,0.84938569]
[1728810597213,0.12124401,62937.0,62936.0,0.99257441]
[1728810597671,0.09914,62937.0,62936.0,0.99257441]
[1728810598313,0.09914,62937.0,62936.0,0.84938569]
[1728810598968,0.1212827,62937.0,62936.0,0.84938569]
[1728810603359,0.09914,62937.0,62936.0,0.84938569]
[1728810603788,0.12128752,62937.0,62936.0,0.84938569]
[1728810609120,0.12128752,62937.0,62936.0,0.84937262]
[1728810617560,0.09914,62937.0,62936.0,0.84937262]
[1728810618043,0.12128599,62937.0,62936.0,0.84937262]
[1728810626201,0.12128599,62937.0,62936.0,0.84936394]
[1728810628215,0.12128599,62937.0,62936.0,0.84936359]
[1728810629358,0.02378599,62937.0,62936.0,0.84936359]
[1728810631442,0.02378599,62937.0,62936.0,0.73780194]
[1728810631659,0.02378599,62937.0,62936.0,0.84936359]
[1728810632092,0.01518646,62937.0,62936.0,0.84936359]
[1728810639889,0.01518646,62937.0,62936.0,0.85136359]
[1728810640151,0.01518646,62937.0,62936.0,0.84936359]
[1728810640375,0.01518646,62937.0,62936.0,0.85136359]
[1728810640824,0.00164,62937.0,62936.0,0.85136359]
[1728810647296,0.00164,62937.0,62936.0,0.85144163]
[1728810647518,0.00164,62937.0,62936.0,0.84944163]
[1728810648647,0.00164,62937.0,62936.0,0.85144163]
[1728810651771,0.00164,62937.0,62936.0,0.85144138]
[1728810656175,0.00164,62937.0,62936.0,0.84944138]
[1728810656639,0.00164,62937.0,62936.0,0.84943954]
[1728810658461,0.00164,62937.0,62936.0,0.83543954]
[1728810658908,0.00164,62937.0,62936.0,0.82143954]
[1728810659135,0.00164,62937.0,62936.0,0.83543954]
[1728810659552,0.00164,62937.0,62936.0,0.82143954]
[1728810659809,0.00164,62937.0,62936.0,0.83543954]
[1728810660973,0.00164,62937.0,62936.0,0.84943954]
[1728810668787,0.00164,62937.0,62936.0,0.83543954]
[1728810668993,0.00164,62937.0,62936.0,0.84943954]
[1728810669253,0.00164,62937.0,62936.0,0.83544535]
[1728810670098,0.00164,62937.0,62936.0,0.84944535]
[1728810673531,0.01519081,62937.0,62936.0,0.84944535]
[1728810673990,0.01519081,62937.0,62936.0,0.84944981]
[1728810675602,0.01519081,62937.0,62936.0,0.79972538]
[1728810683357,0.01519081,62937.0,62936.0,0.79967324]
[1728810683610,0.01519081,62937.0,62936.0,0.68811159]
[1728810683838,0.19089081,62937.0,62936.0,0.7721431]
[1728810684072,0.17734,62937.0,62936.0,0.57207361]
[1728810684306,0.17734,62937.0,62936.0,0.50046896]
[1728810684307,0.19088835,62937.0,62936.0,0.50046896]
[1728810684524,0.19088835,62937.0,62936.0,0.26374336]
[1728810685013,0.19088835,62937.0,62936.0,0.27774336]
[1728810685681,0.19088835,62937.0,62936.0,0.43663436]
[1728810685902,0.19088835,62937.0,62936.0,0.27774336]
[1728810686133,0.19088835,62937.0,62936.0,0.23001631]
[1728810686355,0.19088835,62937.0,62936.0,0.21601631]
[1728810686582,0.34977735,62937.0,62936.0,0.22701631]
[1728810687510,0.19088835,62937.0,62936.0,0.22701631]
[1728810687733,0.19088835,62937.0,62936.0,0.21809401]
[1728810687949,0.34977735,62937.0,62936.0,0.21809401]
[1728810689132,0.19088835,62937.0,62936.0,0.21809401]
[1728810690989,0.19088835,62937.0,62936.0,0.05687]
[1728810690990,0.34977735,62937.0,62936.0,0.05687]
[1728810691719,0.34977735,62937.0,62936.0,0.04287]
[1728810692170,0.34977735,62937.0,62936.0,0.05187]
[1728810692393,0.34977735,62937.0,62936.0,0.04087]
[1728810692849,0.34977735,62937.0,62936.0,0.04687]
[1728810693073,0.34977735,62937.0,62936.0,0.04087]
[1728810693301,0.331894,62935.0,62934.0,0.00082]
[1728810693757,0.34541788,62935.0,62934.0,0.00082]
[1728810694452,0.34541788,62935.0,62934.0,0.03569]
[1728810694681,0.34541788,62935.0,62934.0,0.04269]
[1728810696590,0.34541788,62935.0,62934.0,0.01082]
[1728810697940,0.34541788,62935.0,62934.0,0.00382]
[1728810698370,0.34541788,62935.0,62934.0,0.00682]
[1728810699044,0.34541788,62935.0,62934.0,0.00382]
[1728810700458,0.35041713,62935.0,62934.0,0.00382]
[1728810700935,0.75041713,62935.0,62934.0,0.00382]
[1728810701435,0.75041713,62935.0,62934.0,0.00082]
[1728810701878,0.77530813,62935.0,62934.0,0.00082]
[1728810702113,0.77830813,62935.0,62934.0,0.00182]
[1728810703042,0.78130813,62935.0,62934.0,0.00182]
[1728810703493,0.77830813,62935.0,62934.0,0.00182]
[1728810703709,0.78130813,62935.0,62934.0,0.00182]
[1728810708884,0.75641713,62935.0,62934.0,0.00182]
[1728810711823,0.78130881,62935.0,62934.0,0.00182]
[1728810718109,0.89287046,62935.0,62934.0,0.00182]
[1728810718367,0.78130881,62935.0,62934.0,0.00182]
[1728810718852,0.75641713,62935.0,62934.0,0.00182]
[1728810719328,2.39238279,62935.0,62934.0,0.00182]
[1728810720030,2.28082114,62935.0,62934.0,0.00182]
[1728810720269,2.39238279,62935.0,62934.0,0.00182]
[1728810720516,2.59389236,62935.0,62934.0,0.00182]
[1728810720780,2.43491631,62935.0,62934.0,0.00182]
[1728810721230,2.39402279,62935.0,62934.0,0.00182]
[1728810721449,2.39102279,62935.0,62934.0,0.00082]
[1728810721668,2.44343884,62935.0,62934.0,0.00082]
[1728810721895,2.47132633,62935.0,62934.0,0.00182]
[1728810722353,2.42091602,62935.0,62934.0,0.00182]
[1728810722585,2.49411883,62935.0,62934.0,0.00282]
[1728810723032,2.47432428,62935.0,62934.0,0.00282]
[1728810723257,2.42691602,62935.0,62934.0,0.00282]
[1728810723732,2.47432365,62935.0,62934.0,0.00282]
[1728810724280,2.42691602,62935.0,62934.0,0.00282]
[1728810724714,2.47432431,62935.0,62934.0,0.00282]
[1728810725287,2.42691602,62935.0,62934.0,0.00282]
[1728810725721,2.47432641,62935.0,62934.0,0.00282]
[1728810726354,2.42691602,62935.0,62934.0,0.00282]
[1728810727287,2.49804009,62935.0,62934.0,0.00282]
[1728810727685,2.42691602,62935.0,62934.0,0.00282]
[1728810728345,2.49804009,62935.0,62934.0,0.00282]
[1728810728564,2.42691602,62935.0,62934.0,0.00282]
[1728810728777,2.47316343,62935.0,62934.0,0.00282]
[1728810730338,2.40202279,62935.0,62934.0,0.00282]
[1728810730776,2.29046114,62935.0,62934.0,0.00282]
[1728810730986,2.51358444,62935.0,62934.0,0.00282]
[1728810731459,2.67695415,62935.0,62934.0,0.00282]
[1728810731901,2.70184848,62935.0,62934.0,0.00282]
[1728810732339,2.79670267,62935.0,62934.0,0.00282]
[1728810733027,2.70184848,62935.0,62934.0,0.00282]
[1728810733479,2.82041622,62935.0,62934.0,0.00282]
[1728810735117,2.81841622,62935.0,62934.0,0.00282]
[1728810735340,2.81441622,62935.0,62934.0,0.00182]
[1728810735558,2.81141622,62935.0,62934.0,0.00082]
[1728810735781,2.81741622,62935.0,62934.0,0.00182]
[1728810735990,2.82641622,62935.0,62934.0,0.00282]
[1728810736484,2.70784848,62935.0,62934.0,0.00282]
[1728810738944,2.68295415,62935.0,62934.0,0.00282]
[1728810741849,2.70784916,62935.0,62934.0,0.00282]
[1728810744577,2.8502681,62935.0,62934.0,0.00282]
[1728810744780,2.95577962,62935.0,62934.0,0.00282]
[1728810745204,2.94677962,62935.0,62934.0,0.00182]
[1728810745413,2.94077962,62935.0,62934.0,0.00082]
[1728810745651,2.96777962,62935.0,62934.0,0.00282]
[1728810746075,2.95477962,62935.0,62934.0,0.00182]
[1728810746292,2.95670095,62935.0,62934.0,0.00182]
[1728810746569,2.96970095,62935.0,62934.0,0.00282]
[1728810746798,2.95570095,62935.0,62934.0,0.00182]
[1728810747003,2.96970095,62935.0,62934.0,0.00182]
[1728810751793,2.94480594,62935.0,62934.0,0.00182]
[1728810752221,2.94484172,62935.0,62934.0,0.00182]
[1728810754829,2.96973715,62935.0,62934.0,0.00182]
[1728810757072,2.96978372,62935.0,62934.0,0.00182]
[1728810758873,2.94488829,62935.0,62934.0,0.00182]
[1728810761102,3.44488829,62935.0,62934.0,0.00182]
[1728810761865,3.44503892,62935.0,62934.0,0.00182]
[1728810762203,3.44503894,62935.0,62934.0,0.00182]
[1728810762439,3.60554323,62935.0,62934.0,0.00182]
[1728810763131,3.63043839,62935.0,62934.0,0.00182]
[1728810764317,3.4699341,62935.0,62934.0,0.00182]
[1728810766638,3.47010784,62935.0,62934.0,0.00182]
[1728810767582,3.46810784,62935.0,62934.0,0.00182]
[1728810767821,3.47010784,62935.0,62934.0,0.00182]
[1728810768992,3.47746266,62935.0,62934.0,0.00182]
[1728810769987,3.47546266,62935.0,62934.0,0.00182]
[1728810771882,3.4505675,62935.0,62934.0,0.00182]
[1728810773568,3.4525675,62935.0,62934.0,0.00182]
[1728810774966,3.47746264,62935.0,62934.0,0.00182]
[1728810776156,3.47753436,62935.0,62934.0,0.00182]
[1728810779420,3.47553436,62935.0,62934.0,0.00182]
[1728810779650,3.39563436,62935.0,62934.0,0.00182]
[1728810781142,3.39763436,62935.0,62934.0,0.00182]
[1728810781867,3.39563436,62935.0,62934.0,0.00182]
[1728810782101,3.39763436,62935.0,62934.0,0.00182]
[1728810782808,3.17251106,62935.0,62934.0,0.00182]
[1728810783049,3.37073922,62935.0,62934.0,0.00182]
[1728810783712,3.44723922,62935.0,62934.0,0.00182]
[1728810784132,3.44724758,62935.0,62934.0,0.00182]
[1728810784770,3.44924758,62935.0,62934.0,0.00182]
[1728810786137,3.47414237,62935.0,62934.0,0.00182]
[1728810786643,3.64987646,62935.0,62934.0,0.00182]
[1728810788412,3.64787646,62935.0,62934.0,0.00182]
[1728810788840,3.60898167,62935.0,62934.0,0.00182]
[1728810789053,3.59676589,62935.0,62934.0,0.00082]
[1728810789265,3.61076589,62935.0,62934.0,0.00082]
[1728810789473,3.62476589,62935.0,62934.0,0.00182]
[1728810790726,3.43696107,62935.0,62934.0,0.00082]
[1728810791156,3.45096107,62935.0,62934.0,0.00082]
[1728810791577,3.43696107,62935.0,62934.0,0.00082]
[1728810791998,3.45096107,62935.0,62934.0,0.00082]
[1728810792482,3.43696107,62935.0,62934.0,0.00082]
[1728810792692,3.46496107,62935.0,62934.0,0.00082]
[1728810793116,3.48985603,62935.0,62934.0,0.00082]
[1728810793340,3.46185603,62935.0,62934.0,0.00082]
[1728810793554,3.47258156,62935.0,62934.0,0.00082]
[1728810794085,3.45858156,62935.0,62934.0,0.00082]
[1728810794296,3.47258156,62935.0,62934.0,0.00082]
[1728810795665,3.64839801,62935.0,62934.0,0.00082]
[1728810795913,3.62039801,62935.0,62934.0,0.00082]
[1728810796364,3.63439801,62935.0,62934.0,0.00082]
[1728810797041,3.64839801,62935.0,62934.0,0.00082]
[1728810797720,3.63439801,62935.0,62934.0,0.00082]
[1728810797966,3.64839801,62935.0,62934.0,0.00082]
[1728810798424,3.65167156,62935.0,62934.0,0.00082]
[1728810798911,3.6267766,62935.0,62934.0,0.00082]
[1728810802973,3.62675887,62935.0,62934.0,0.00082]
[1728810803211,3.65165366,62935.0,62934.0,0.00082]
[1728810803711,3.63565366,62935.0,62934.0,0.00082]
[1728810803983,3.53809201,62935.0,62934.0,0.00082]
[1728810804221,3.52409201,62935.0,62934.0,0.00082]
[1728810804949,3.51009201,62935.0,62934.0,0.00082]
[1728810805417,3.52409201,62935.0,62934.0,0.00082]
[1728810805903,3.51009201,62935.0,62934.0,0.00082]
[1728810806136,3.53809201,62935.0,62934.0,0.00082]
[1728810806630,3.53808625,62935.0,62934.0,0.00082]
[1728810807336,3.6496479,62935.0,62934.0,0.00082]
[1728810807887,3.64963345,62935.0,62934.0,0.00082]
[1728810808503,3.65163345,62935.0,62934.0,0.00082]
[1728810810474,3.64963345,62935.0,62934.0,0.00082]
[1728810811793,3.62473866,62935.0,62934.0,0.00082]
[1728810812621,3.62472781,62935.0,62934.0,0.00082]
[1728810813453,3.62672781,62935.0,62934.0,0.00082]
[1728810814710,3.6516225,62935.0,62934.0,0.00082]
[1728810814911,3.6496225,62935.0,62934.0,0.00082]
[1728810815808,3.6216225,62935.0,62934.0,0.00082]
[1728810816022,3.6356225,62935.0,62934.0,0.00082]
[1728810816234,3.6496225,62935.0,62934.0,0.00082]
[1728810816448,3.6356225,62935.0,62934.0,0.00082]
[1728810816695,3.6496225,62935.0,62934.0,0.00082]
[1728810821994,3.64961995,62935.0,62934.0,0.00082]
[1728810825067,3.62472526,62935.0,62934.0,0.00082]
[1728810825469,3.61072526,62935.0,62934.0,0.00082]
[1728810825609,3.59672526,62935.0,62934.0,0.00082]
[1728810825821,3.62472526,62935.0,62934.0,0.00082]
[1728810826036,3.61072526,62935.0,62934.0,0.00082]
[1728810826450,3.62472526,62935.0,62934.0,0.00082]
[1728810827261,3.61072526,62935.0,62934.0,0.00082]
[1728810827663,3.62472526,62935.0,62934.0,0.00082]
[1728810827862,3.6496199,62935.0,62934.0,0.00082]
[1728810828819,3.62472526,62935.0,62934.0,0.00082]
[1728810829228,3.62672526,62935.0,62934.0,0.00082]
[1728810833203,3.65161993,62935.0,62934.0,0.00082]
[1728810833844,3.65166091,62935.0,62934.0,0.00082]
[1728810836527,3.65167277,62935.0,62934.0,0.00082]